fUSD/lending_fUSD_20260308
["ID","MTS","AMOUNT","RATE_DAILY","PERIOD"]
[407962025,1772935832374,-278.50888134,0.00019799,2]
[407962026,1772935832384,-766.522757,0.00019799,2]
[407962027,1772935832393,-3388.31064175,0.00019799,2]
[407962028,1772935832402,-2753.8123899,0.00019799,2]
[407962029,1772935832413,-646.23920443,0.00019799,2]
[407962030,1772935832422,-243.96132444,0.00019799,2]
[407962031,1772935832431,-1503.0344866,0.00019799,2]
[407962032,1772935832440,-150.0,0.000198,2]
[407962033,1772935832449,-250.0,0.0001982,2]
[407962034,1772935832459,-570.0,0.00019863,2]
[407962035,1772935832469,-599.58,0.00019889,2]
[407962036,1772935832479,-193.33589308,0.00019889,2]
[407962037,1772935832488,-599.58,0.00019889,2]
[407962038,1772935832497,-599.58,0.00019889,2]
[407962039,1772935832597,-599.58,0.00019889,2]
[407962040,1772935832608,-599.58,0.00019889,2]
[407962041,1772935832618,-500.0,0.00019898,2]
[407962042,1772935832628,-500.0,0.00019898,2]
[407962043,1772935832637,-500.0,0.00019898,2]
[407962044,1772935832646,-500.0,0.00019898,2]
[407962045,1772935832655,-500.0,0.00019898,2]
[407962046,1772935832664,-500.0,0.00019898,2]
[407962047,1772935832674,-506.57129647,0.00019898,2]
[407962048,1772935832683,-500.0,0.00019898,2]
[407962049,1772935832692,-500.0,0.00019898,2]
[407962050,1772935832702,-500.0,0.00019898,2]
[407962051,1772935832711,-534.94809485,0.00019898,2]
[407962052,1772935832721,-224.16997162,0.00019898,2]
[407962053,1772935832730,-500.0,0.00019898,2]
[407962054,1772935832739,-500.0,0.00019898,2]
[407962055,1772935832748,-500.0,0.00019898,2]
[407962056,1772935832757,-500.0,0.00019898,2]
[407962057,1772935832766,-500.0,0.00019898,2]
[407962058,1772935832775,-500.0,0.00019898,2]
[407962059,1772935832785,-500.0,0.00019898,2]
[407962060,1772935832793,-500.0,0.00019898,2]
[407962061,1772935832802,-500.0,0.00019898,2]
[407962062,1772935832811,-500.0,0.00019898,2]
[407962063,1772935832820,-500.0,0.00019898,2]
[407962064,1772935832829,-500.0,0.00019898,2]
[407962065,1772935832838,-500.0,0.00019898,2]
[407962066,1772935832848,-500.0,0.00019898,2]
[407962067,1772935832857,-500.0,0.00019898,2]
[407962068,1772935832869,-500.0,0.00019898,2]
[407962069,1772935832878,-500.0,0.00019898,2]
[407962070,1772935832888,-500.0,0.00019898,2]
[407962071,1772935832897,-500.0,0.00019898,2]
[407962072,1772935832906,-500.0,0.00019898,2]
[407962073,1772935832916,-600.0562129,0.00019898,2]
[407962074,1772935832925,-500.0,0.00019898,2]
[407962075,1772935832935,-500.0,0.00019898,2]
[407962076,1772935832944,-500.0,0.00019898,2]
[407962077,1772935832953,-500.0,0.00019898,2]
[407962078,1772935832963,-500.0,0.00019898,2]
[407962079,1772935832972,-500.0,0.00019898,2]
[407962080,1772935832981,-500.0,0.00019898,2]
[407962081,1772935832991,-500.0,0.00019898,2]
[407962082,1772935832999,-566.14105569,0.00019898,2]
[407962083,1772935833009,-500.0,0.00019898,2]
[407962084,1772935833018,-513.30795353,0.00019898,2]
[407962085,1772935833027,-500.0,0.00019898,2]
[407962086,1772935833036,-279.9073084,0.00019898,2]
[407962087,1772935833045,-500.0,0.00019898,2]
[407962088,1772935833055,-210.6126522,0.00019898,2]
[407962089,1772935833064,-500.0,0.00019898,2]
[407962090,1772935833073,-500.0,0.00019898,2]
[407962091,1772935833082,-500.0,0.00019898,2]
[407962092,1772935833091,-500.0,0.00019898,2]
[407962093,1772935833100,-500.0,0.00019898,2]
[407962094,1772935833110,-500.0,0.00019898,2]
[407962095,1772935833119,-500.0,0.00019898,2]
[407962096,1772935833129,-500.0,0.00019898,2]
[407962097,1772935833138,-500.0,0.00019898,2]
[407962098,1772935833147,-500.0,0.00019898,2]
[407962099,1772935833156,-500.0,0.00019898,2]
[407962100,1772935833165,-500.0,0.00019898,2]
[407962101,1772935833174,-500.0,0.00019898,2]
[407962102,1772935833183,-500.0,0.00019898,2]
[407962103,1772935833193,-500.0,0.00019898,2]
[407962104,1772935833202,-500.0,0.00019898,2]
[407962105,1772935833212,-500.0,0.00019898,2]
[407962106,1772935833222,-500.0,0.00019898,2]
[407962107,1772935833235,-150.0,0.00019898,2]
[407962108,1772935833245,-53290.02194644,0.00019899,2]
[407962109,1772935833264,-8603.17160932,0.00019899,2]
[407962110,1772935833276,-4754.68027319,0.00019899,2]
[407962111,1772935833287,-3058.63601826,0.00019899,2]
[407962112,1772935833301,-1190.4258665,0.00019899,2]
[407962113,1772935833312,-393.653476,0.00019899,2]
[407962114,1772935833327,-617.59066296,0.00019899,2]
[407962116,1772935837422,-355.95453025,0.00019799,2]
[407962117,1772935837432,-6993.75542974,0.00019899,2]
[407962118,1772935837478,-613.49993538,0.00019899,2]
[407962119,1772935837584,-502950.48594764,0.00019899,2]
[407962120,1772935837639,-1218.93324105,0.00019899,2]
[407962133,1772935839811,-90397.5479836,0.00019899,2]
[407962134,1772935839871,-11718.29394586,0.00019899,2]
[407962135,1772935839884,-2075.5,0.00019899,2]
[407962136,1772935840192,-276.871998,0.00019899,2]
[407962137,1772935840205,-4353.0468707,0.00019899,2]
[407962138,1772935840218,-505.0,0.00019899,2]
[407962145,1772935842451,-12940.55648981,0.00019899,2]
[407962146,1772935842503,-947.52013912,0.00019899,2]
[407962147,1772935842559,-273206.71789671,0.00019899,2]
[407962148,1772935842572,-1163.97833448,0.00019899,2]
[407962149,1772935842585,-1036.94153083,0.00019899,2]
[407962150,1772935842597,-16512.63184029,0.00019899,2]
[407962151,1772935842609,-7595.19730418,0.00019899,2]
[407962152,1772935842622,-5100.93599827,0.00019899,2]
[407962153,1772935842634,-478.40847829,0.00019899,2]
[407962154,1772935842668,-3479.28168218,0.00019899,2]
[407962157,1772935845341,-204.11323615,0.00019799,2]
[407962158,1772935845351,-43166.32440843,0.00019899,2]
[407962159,1772935845502,-656.64772655,0.00019899,2]
[407962160,1772935845555,-864.33435663,0.00019899,2]
[407962161,1772935845608,-927.35043388,0.00019899,2]
[407962162,1772935845621,-411.32854,0.00019899,2]
[407962163,1772935845633,-943.89784394,0.00019899,2]
[407962164,1772935845666,-726.65367492,0.00019899,2]
[407962166,1772935979689,2831.19,0.000117,2]
[407962217,1772936483816,166.23,7.686e-05,2]
[407962220,1772936845336,500.0,8e-05,2]
[407962221,1772936845841,500.0,8e-05,2]
[407962222,1772936850535,500.25381456,8e-05,2]
[407962223,1772937031533,-1187.36,0.00011917,2]
[407962224,1772937031543,-253.779099,0.00013109,2]
[407962225,1772937031552,-300.0,0.00014057,2]
[407962226,1772937031562,-600.0,0.00014057,2]
[407962227,1772937031571,-607.08609448,0.00014057,2]
[407962228,1772937031581,-176.7501864,0.00014483,2]
[407962229,1772937031591,-1200.0,0.00014581,2]
[407962230,1772937031601,-300.0,0.00014581,2]
[407962231,1772937031614,-3465.13,0.00014582,2]
[407962232,1772937031627,-200.0,0.00014583,2]
[407962233,1772937031636,-250.0,0.00014719,2]
[407962234,1772937031647,-1500.0,0.00014777,2]
[407962235,1772937031659,-400.0,0.000148,5]
[407962236,1772937031668,-150.0,0.00014853,2]
[407962237,1772937031678,-366.79,0.00014853,2]
[407962238,1772937031689,-1075.46,0.000149,2]
[407962239,1772937031700,-800.0,0.000149,5]
[407962240,1772937031710,-515.9418452,0.00015,30]
[407962241,1772937031720,-500.0,0.00015,30]
[407962242,1772937031730,-500.0,0.00015,30]
[407962243,1772937031739,-901.42782791,0.00015,30]
[407962244,1772937031749,-485.47888499,0.00015,30]
[407962245,1772937031758,-500.0,0.00015,30]
[407962247,1772937031768,-500.0,0.00015073,2]
[407962248,1772937031778,-2009.78346308,0.00015073,2]
[407962249,1772937031790,-911.54092728,0.00015073,2]
[407962250,1772937031801,-1703.04317917,0.00015073,2]
[407962251,1772937031813,-961.76128568,0.00015073,2]
[407962253,1772937031823,-334.50400147,0.00015073,2]
[407962255,1772937031833,-193.33589308,0.00015086,2]
[407962256,1772937031843,-300.0,0.00015095,2]
[407962257,1772937031853,-1130.39881977,0.00015096,2]
[407962258,1772937031865,-2410.62805522,0.00015096,2]
[407962259,1772937031878,-716.51117773,0.00015096,2]
[407962260,1772937031895,-150.0,0.00014156,2]
[407962261,1772937031904,-245474.07244878,0.00015096,2]
[407962262,1772937031915,-47265.04594218,0.00015096,2]
[407962263,1772937031926,-105055.44903334,0.00015096,2]
[407962264,1772937031938,-34069.87592651,0.00015096,2]
[407962265,1772937031949,-465.18605663,0.00015096,2]
[407962266,1772937031960,-8113.46528437,0.00015096,2]
[407962267,1772937031971,-739.83242181,0.00015096,2]
[407962268,1772937031987,-2518.78506904,0.00015096,2]
[407962269,1772937031998,-1422.63899574,0.00015096,2]
[407962271,1772937037629,-497.11896617,0.00015095,2]
[407962272,1772937037639,-236.82867905,0.00015095,2]
[407962273,1772937037651,-556.28569961,0.00015095,2]
[407962274,1772937037661,-233.0778919,0.00015096,2]
[407962275,1772937037673,-3595.2502192,0.00015096,2]
[407962276,1772937037734,-868589.04093854,0.00015096,2]
[407962277,1772937037788,-667.99703887,0.00015096,2]
[407962278,1772937037801,-1590.06766402,0.00015096,2]
[407962279,1772937037812,-508.08167837,0.00015096,2]
[407962280,1772937037824,-1798.91316606,0.00015096,2]
[407962281,1772937037843,-788.45865194,0.00015096,2]
[407962282,1772937037900,-4378.99380511,0.00015096,2]
[407962496,1772937040299,-1058.577,0.00015096,2]
[407962497,1772937040311,-1140.84282269,0.00015096,2]
[407962498,1772937040322,-80775.35500359,0.00015096,2]
[407962499,1772937040333,-1340.67387277,0.00015096,2]
[407962916,1772937045588,-10798.53529636,0.00015096,2]
[407962917,1772937045817,-448.32500036,0.00015096,2]
[407962918,1772937045830,-11745.54127804,0.00015096,2]
[407962919,1772937045870,-973.00923496,0.00015096,2]
[407962928,1772937139864,501.18765837,8e-05,2]
[407962929,1772937145964,500.90553517,8e-05,2]
[407962930,1772937148906,500.0,8e-05,2]
[407962931,1772937149420,500.0,8e-05,2]
[407962932,1772937149952,504.11793915,8e-05,2]
[407962935,1772937328384,10000.0,0.0002,120]
[407962936,1772937335910,10000.0,0.0002,120]
[407962937,1772937345150,3455.0,0.0002,120]
[407962938,1772937362664,10000.0,0.0002,120]
[407962939,1772937443580,500.0,8e-05,2]
[407962940,1772937444253,500.0,8e-05,2]
[407962941,1772937444636,800.0,8e-05,2]
[407962942,1772937444776,502.74039941,8e-05,2]
[407962943,1772937449148,503.14379471,8e-05,2]
[407962947,1772937735562,9700.0,0.0002,120]
[407962948,1772937743749,4561.3,0.000117,2]
[407962949,1772937745154,500.0,8e-05,2]
[407962950,1772937745689,900.0,8e-05,2]
[407962951,1772937745719,500.0,8e-05,2]
[407962952,1772937745809,500.0,8e-05,2]
[407962953,1772937746161,500.0,8e-05,2]
[407962954,1772937748365,500.0,8e-05,2]
[407962955,1772937749025,500.0,8e-05,2]
[407962956,1772937749142,500.0,8e-05,2]
[407962957,1772937749616,507.72877197,8e-05,2]
[407962959,1772938045568,500.0,8e-05,2]
[407962960,1772938046049,500.0,8e-05,2]
[407962961,1772938046536,500.0,8e-05,2]
[407962962,1772938046912,500.0,8e-05,2]
[407962963,1772938047216,500.0,8e-05,2]
[407962964,1772938048417,500.0,8e-05,2]
[407962965,1772938048864,500.0,8e-05,2]
[407962966,1772938049547,500.0,8e-05,2]
[407962975,1772938231737,-774.4,0.00014051,2]
[407962976,1772938231747,-179.54191315,0.00014086,2]
[407962977,1772938231789,-1012.79808685,0.00014086,2]
[407962978,1772938231800,-1852.42,0.00014398,2]
[407962979,1772938231811,-150.0,0.00014415,2]
[407962980,1772938231821,-361.01,0.0001445,2]
[407962981,1772938231833,-1200.0,0.00014634,2]
[407962982,1772938231844,-300.0,0.00014634,2]
[407962983,1772938231854,-5036.73056639,0.00014635,2]
[407962984,1772938231865,-4173.56263628,0.00014635,2]
[407962985,1772938231875,-278.7533346,0.00014635,2]
[407962986,1772938231886,-187.21052835,0.00014725,2]
[407962987,1772938231899,-151.0,0.00014732,2]
[407962988,1772938231909,-151.0,0.00014732,2]
[407962989,1772938231923,-151.0,0.00014732,2]
[407962990,1772938231932,-347.98327632,0.00014734,2]
[407962991,1772938231943,-165.78007533,0.00014734,2]
[407962992,1772938231953,-162.83780358,0.00014734,2]
[407962993,1772938231963,-150.0,0.00014734,2]
[407962994,1772938231973,-6751.2313,0.00014735,2]
[407962995,1772938231982,-147597.78265633,0.00014735,2]
[407962996,1772938231995,-76929.49075814,0.00014735,2]
[407962998,1772938232010,-1254.41808677,0.00014735,2]
[407963000,1772938232022,-2584.1379276,0.00014735,2]
[407963003,1772938232035,-572.84682148,0.00014735,2]
[407963054,1772938237878,-250.0,0.00014255,2]
[407963055,1772938237888,-2541.21611825,0.00014735,2]
[407963056,1772938237904,-304.0,0.00014735,2]
[407963057,1772938237927,-3817.73369523,0.00014735,2]
[407963058,1772938237938,-284.73293905,0.00014735,2]
[407963059,1772938237949,-677.39866961,0.00014735,2]
[407963060,1772938237960,-4780.51995631,0.00014735,2]
[407963061,1772938237971,-1043.32815076,0.00014735,2]
[407963062,1772938237982,-522.03198057,0.00014735,2]
[407963063,1772938238038,-541.73662039,0.00014735,2]
[407963064,1772938238049,-23752.2917277,0.00014735,2]
[407963087,1772938239980,-922.18333418,0.00014735,2]
[407963088,1772938239991,-500.0,0.00014735,2]
[407963089,1772938240003,-420.86114321,0.00014735,2]
[407963090,1772938240196,-1587.711,0.00014735,2]
[407963091,1772938240208,-3229.74116892,0.00014735,2]
[407963092,1772938240219,-425.63,0.00014735,2]
[407963093,1772938240460,-352.636,0.00014735,2]
[407963094,1772938240515,-1639.81824446,0.00014735,2]
[407963095,1772938240526,-6061.57519651,0.00014735,2]
[407963096,1772938240537,-6465.33110218,0.00014735,2]
[407963100,1772938242868,-2726.38566945,0.00014735,2]
[407963101,1772938242879,-11902.88782967,0.00014735,2]
[407963102,1772938243025,-10072.13946771,0.00014735,2]
[407963103,1772938243037,-977.36552474,0.00014735,2]
[407963104,1772938243050,-3047.58091749,0.00014735,2]
[407963124,1772938245696,-32818.85437175,0.00014735,2]
[407963126,1772938245753,-3857.7123853,0.00014735,2]
[407963127,1772938245912,-399889.55206656,0.00014735,2]
[407963128,1772938246022,-358.65999928,0.00014735,2]
[407963147,1772938339149,500.0,8e-05,2]
[407963148,1772938339554,501.61503341,8e-05,2]
[407963149,1772938339616,501.65139002,8e-05,2]
[407963150,1772938339910,500.0,8e-05,2]
[407963151,1772938339978,500.0,8e-05,2]
[407963152,1772938340151,808.55970454,8e-05,2]
[407963153,1772938340388,800.0,8e-05,2]
[407963154,1772938340465,600.0,8e-05,2]
[407963155,1772938420323,7266.0,0.0002,120]
[407963164,1772938636431,500.0,8e-05,2]
[407963165,1772938637400,600.0,8e-05,2]
[407963166,1772938637646,500.0,8e-05,2]
[407963167,1772938638161,800.0,8e-05,2]
[407963168,1772938638760,500.0,8e-05,2]
[407963169,1772938639252,900.0,8e-05,2]
[407963170,1772938647855,165000.0,0.0002,120]
[407963174,1772938844812,203.25,0.0002,120]
[407963176,1772938937287,500.0,8e-05,2]
[407963177,1772938937372,500.0,8e-05,2]
[407963178,1772938937755,500.0,8e-05,2]
[407963179,1772938937863,500.0,8e-05,2]
[407963180,1772938938218,500.0,8e-05,2]
[407963181,1772938938337,500.0,8e-05,2]
[407963182,1772938938766,500.0,8e-05,2]
[407963183,1772938939229,500.0,8e-05,2]
[407963184,1772938939702,500.0,8e-05,2]
[407963186,1772938944620,500.0,8e-05,2]
[407963187,1772938944735,500.0,8e-05,2]
[407963188,1772938945124,500.0,8e-05,2]
[407963189,1772938945216,500.0,8e-05,2]
[407963190,1772938945645,500.0,8e-05,2]
[407963191,1772938946114,500.0,8e-05,2]
[407963192,1772938946595,700.0,8e-05,2]
[407963197,1772939237724,700.0,8e-05,2]
[407963198,1772939242586,500.0,8e-05,2]
[407963199,1772939243046,500.0,8e-05,2]
[407963200,1772939248016,500.0,8e-05,2]
[407963201,1772939250704,500.0,8e-05,2]
[407963202,1772939251072,500.0,8e-05,2]
[407963203,1772939251872,500.0,8e-05,2]
[407963204,1772939252326,500.0,8e-05,2]
[407963205,1772939252796,500.0,8e-05,2]
[407963206,1772939253776,25.17591562,8e-05,2]
[407963207,1772939253815,474.82408438,8e-05,2]
[407963208,1772939254500,500.0,8e-05,2]
[407963209,1772939255084,500.0,8e-05,2]
[407963210,1772939255575,500.0,8e-05,2]
[407963211,1772939256071,500.0,8e-05,2]
[407963212,1772939256535,500.0,8e-05,2]
[407963213,1772939256997,500.0,8e-05,2]
[407963214,1772939257470,500.0,8e-05,2]
[407963215,1772939257918,800.0,8e-05,2]
[407963238,1772939431916,-1217.1,0.00011507,2]
[407963239,1772939431927,-246.54989884,0.00012899,2]
[407963240,1772939431936,-300.0,0.00012999,2]
[407963241,1772939431945,-300.0,0.00012999,2]
[407963242,1772939431955,-300.0,0.00012999,2]
[407963243,1772939431964,-1200.0,0.00012999,2]
[407963244,1772939431974,-9000.0,0.00013,2]
[407963245,1772939431983,-250.0,0.00013001,2]
[407963246,1772939431993,-23.10363148,0.00013089,2]
[407963247,1772939432005,-143.55636852,0.00013089,2]
[407963248,1772939432014,-246.54989883,0.0001322,2]
[407963249,1772939432024,-500.0,0.00013228,2]
[407963250,1772939432033,-2000.0,0.00013306,2]
[407963251,1772939432042,-6687.44,0.00013314,2]
[407963252,1772939432051,-3021.5,0.00013328,2]
[407963253,1772939432061,-166.66,0.00013364,2]
[407963254,1772939432071,-246.54989883,0.0001354,2]
[407963255,1772939432080,-686.08,0.00013566,2]
[407963256,1772939432089,-150.0,0.00013639,2]
[407963257,1772939432098,-9999.99,0.0001364,2]
[407963258,1772939432107,-5730.38,0.0001364,2]
[407963259,1772939432118,-1476.49,0.0001364,2]
[407963260,1772939432128,-6270.48,0.0001364,2]
[407963261,1772939432138,-999.99,0.0001364,2]
[407963262,1772939432150,-9999.99,0.0001364,2]
[407963263,1772939432159,-2971.02,0.0001364,2]
[407963264,1772939432170,-150.99,0.0001364,2]
[407963265,1772939432179,-7431.85,0.0001364,2]
[407963266,1772939432188,-150.99,0.0001364,2]
[407963267,1772939432198,-166.66,0.0001364,2]
[407963268,1772939432207,-504.2154871,0.00013673,2]
[407963269,1772939432217,-200.0,0.00013699,2]
[407963271,1772939432226,-173.58,0.00013848,2]
[407963273,1772939432236,-271.0,0.00013902,2]
[407963275,1772939432245,-166.66,0.00013915,2]
[407963276,1772939432254,-11387.78,0.00013925,2]
[407963278,1772939432263,-166.66,0.00014191,2]
[407963280,1772939432273,-253.49447439,0.00014191,2]
[407963282,1772939432283,-420.0,0.00014256,2]
[407963285,1772939432292,-1609.0,0.00014299,2]
[407963287,1772939432301,-150.0,0.0001435,2]
[407963288,1772939432310,-500.0,0.0001435,2]
[407963290,1772939432319,-150.0,0.0001435,2]
[407963292,1772939432329,-150.0,0.0001435,2]
[407963294,1772939432338,-150.0,0.0001435,2]
[407963296,1772939432347,-150.0,0.0001435,2]
[407963298,1772939432356,-150.0,0.0001435,2]
[407963299,1772939432365,-150.0,0.0001435,2]
[407963300,1772939432375,-150.0,0.0001435,2]
[407963301,1772939432384,-500.0,0.00014405,2]
[407963302,1772939432394,-500.0,0.00014405,2]
[407963303,1772939432403,-150.0,0.00014405,2]
[407963304,1772939432413,-150.0,0.00014405,2]
[407963305,1772939432422,-150.0,0.00014405,2]
[407963306,1772939432432,-150.0,0.00014405,2]
[407963307,1772939432441,-150.0,0.00014405,2]
[407963308,1772939432452,-8542.10957541,0.00014435,2]
[407963309,1772939432461,-500.0,0.00014459,2]
[407963310,1772939432471,-470.47936844,0.0001446,2]
[407963311,1772939432480,-200.0,0.0001446,2]
[407963312,1772939432495,-150.0,0.0001446,2]
[407963313,1772939432505,-150.0,0.0001446,2]
[407963314,1772939432515,-150.0,0.0001446,2]
[407963315,1772939432524,-200.0,0.0001446,2]
[407963316,1772939432534,-150.0,0.0001446,2]
[407963317,1772939432543,-150.0,0.0001446,2]
[407963318,1772939432553,-166.66,0.00014466,2]
[407963319,1772939432563,-500.0,0.00014514,2]
[407963320,1772939432572,-200.0,0.00014514,2]
[407963321,1772939432586,-200.0,0.00014514,2]
[407963322,1772939432597,-150.0,0.00014514,2]
[407963323,1772939432606,-199.5192988,0.00014515,2]
[407963324,1772939432615,-150.0,0.00014515,2]
[407963325,1772939432626,-31109.69047778,0.00014535,2]
[407963326,1772939432637,-38601.25901921,0.00014535,2]
[407963327,1772939432649,-7158.24130301,0.00014535,2]
[407963328,1772939432660,-2500.0,0.00014535,2]
[407963329,1772939432669,-453.31902202,0.00014569,2]
[407963330,1772939432680,-293.0,0.00014569,2]
[407963331,1772939432690,-150.0,0.0001457,2]
[407963332,1772939432699,-500.0,0.00014573,2]
[407963333,1772939432708,-500.0,0.00014573,2]
[407963334,1772939432717,-500.0,0.00014573,2]
[407963335,1772939432726,-500.0,0.00014573,2]
[407963336,1772939432735,-500.0,0.00014573,2]
[407963337,1772939432747,-150.0,0.00014624,2]
[407963338,1772939432756,-1000.0,0.00014634,2]
[407963339,1772939432766,-504.11938946,0.00014634,2]
[407963340,1772939432775,-500.0,0.00014634,2]
[407963341,1772939432784,-500.0,0.00014634,2]
[407963342,1772939432793,-500.0,0.00014634,2]
[407963343,1772939432803,-500.0,0.00014634,2]
[407963344,1772939432812,-500.0,0.00014634,2]
[407963345,1772939432822,-500.0,0.00014634,2]
[407963346,1772939432831,-500.0,0.00014634,2]
[407963347,1772939432840,-500.0,0.00014634,2]
[407963348,1772939432851,-500.0,0.00014634,2]
[407963349,1772939432861,-500.0,0.00014634,2]
[407963350,1772939432870,-500.0,0.00014634,2]
[407963351,1772939432879,-500.0,0.00014634,2]
[407963352,1772939432888,-330.40136184,0.00014634,2]
[407963353,1772939432898,-500.0,0.00014634,2]
[407963354,1772939432907,-500.0,0.00014634,2]
[407963355,1772939432918,-9875.15472537,0.00014635,2]
[407963356,1772939432929,-23048.49807463,0.00014635,2]
[407963357,1772939432939,-1000.0,0.00014635,2]
[407963358,1772939432948,-819.80878566,0.00014635,2]
[407963359,1772939432958,-6203.58591184,0.00014635,2]
[407963360,1772939432968,-213.0,0.00014676,2]
[407963361,1772939432978,-150.0,0.00014679,2]
[407963362,1772939432987,-162.97,0.000147,2]
[407963363,1772939432996,-500.0,0.00014726,2]
[407963364,1772939433005,-500.0,0.00014726,2]
[407963365,1772939433016,-151.0,0.00014726,2]
[407963366,1772939433025,-500.0,0.00014726,2]
[407963367,1772939433033,-151.0,0.00014726,2]
[407963368,1772939433043,-151.0,0.00014726,2]
[407963369,1772939433052,-500.0,0.00014726,2]
[407963370,1772939433061,-151.0,0.00014726,2]
[407963371,1772939433071,-500.0,0.00014726,2]
[407963372,1772939433080,-151.0,0.00014726,2]
[407963373,1772939433089,-500.0,0.00014726,2]
[407963374,1772939433101,-151.0,0.00014726,2]
[407963375,1772939433112,-500.0,0.00014726,2]
[407963376,1772939433121,-151.0,0.00014726,2]
[407963377,1772939433140,-151.0,0.00014726,2]
[407963378,1772939433151,-500.0,0.00014726,2]
[407963379,1772939433162,-151.0,0.00014726,2]
[407963380,1772939433172,-500.0,0.00014726,2]
[407963381,1772939433183,-151.0,0.00014726,2]
[407963382,1772939433194,-500.0,0.00014726,2]
[407963383,1772939433203,-151.0,0.00014726,2]
[407963384,1772939433214,-500.0,0.00014726,2]
[407963385,1772939433223,-500.0,0.00014726,2]
[407963386,1772939433232,-500.0,0.00014726,2]
[407963387,1772939433243,-363.47246001,0.00014726,2]
[407963388,1772939433254,-200.0,0.00014726,2]
[407963389,1772939433264,-206.46868478,0.00014734,2]
[407963390,1772939433276,-500.0,0.00014734,2]
[407963391,1772939433286,-500.0,0.00014734,2]
[407963392,1772939433297,-500.0,0.00014734,2]
[407963393,1772939433309,-500.0,0.00014734,2]
[407963394,1772939433318,-500.0,0.00014734,2]
[407963395,1772939433327,-500.0,0.00014734,2]
[407963396,1772939433337,-500.0,0.00014734,2]
[407963397,1772939433349,-260.32523881,0.00014734,2]
[407963398,1772939433360,-2479.0,0.00014735,2]
[407963399,1772939433371,-217.29025406,0.00014735,2]
[407963400,1772939433380,-151.0,0.00014735,2]
[407963401,1772939433390,-774.4,0.00014754,2]
[407963402,1772939433400,-255.0,0.00014757,2]
[407963403,1772939433410,-500.41098414,0.00014773,2]
[407963404,1772939433419,-500.0,0.00014773,2]
[407963405,1772939433429,-296.11,0.00014831,2]
[407963406,1772939433438,-500.0,0.00014834,2]
[407963407,1772939433449,-79105.43282647,0.00014835,2]
[407963408,1772939437952,-1681.636013,0.00014835,2]
[407963409,1772939437965,-2122.43404516,0.00014835,2]
[407963410,1772939437976,-689.31333018,0.00014835,2]
[407963411,1772939437987,-1617.85335786,0.00014835,2]
[407963412,1772939437999,-906.62232147,0.00014835,2]
[407963413,1772939438011,-524.5609721,0.00014835,2]
[407963414,1772939438024,-580.23789574,0.00014835,2]
[407963415,1772939438097,-6330.09649591,0.00014835,2]
[407963416,1772939438108,-295.44613148,0.00014835,2]
[407963423,1772939440432,-2914.41484346,0.00014835,2]
[407963424,1772939440596,-15751.12589163,0.00014835,2]
[407963425,1772939440605,-151.0,0.00014835,2]
[407963426,1772939440614,-236.67377231,0.00014835,2]
[407963427,1772939440623,-5731.80351407,0.00014851,2]
[407963428,1772939440633,-227.66,0.00014951,2]
[407963429,1772939440642,-2000.0,0.00014969,2]